[Event "Gibraltar Amateurs A 2020"]
[Site "Caleta"]
[Date "2020.01.23"]
[Round "4.6"]
[White "Kovacevic, Aleksandar S"]
[Black "Greco, Joseph"]
[Result "0-1"]
[ECO "A00"]
[WhiteElo "1804"]
[BlackElo "1691"]
[Annotator "NA"]
[PlyCount "102"]
[EventDate "2020.01.20"]
[EventType "swiss"]
[EventCountry "GGB"]
[SourceTitle "playchess.com"]
[Source "ChessBase"]
[SourceQuality "1"]
[TimeControl "6600+10"]

1. b4 {[%emt 0:00:00]} d5 {[%emt 0:00:24]} 2. Nf3 {[%emt 0:00:23]} Nf6 {[%emt 0:00:27]} 3. e3 {[%emt 0:00:49]} (3. Bb2 Bf5 4. e3 e6 5. c4 Bxb4 6. Qa4+ Nc6 7. Nd4 Rb8 8. Nxf5 exf5 9. cxd5 Qxd5 10. Bxf6 gxf6 11. a3 Ba5 12. Qc4 Rd8 13. Qxd5 Rxd5 {½-½ (30) Bogdanovich,S (2574)-Xu,X (2532) Konya 2017}) 3... e6 {[%emt 0:03:59]} 4. a3 {[%emt 0:01:53]} c5 {[%emt 0:00:40]} 5. bxc5 {[%emt 0:01:25]} Bxc5 {[%emt 0:00:15]} 6. Nc3 {[%emt 0:00:57] A00: Irregular Openings} O-O {[%emt 0:02:24]} 7. Be2 $146 {[%emt 0:01:05]} ({Predecessor:} 7. d4 Bd6 8. Nb5 Be7 9. c4 Nc6 10. cxd5 exd5 11. Bd3 Ne4 {1-0 (22) Jacewicz,G-Pane,A Poland 1995}) 7... Nc6 {[%emt 0:03:25]} 8. Bb2 {[%emt 0:01:57]} a6 {[%emt 0:02:48]} 9. O-O {[%emt 0:05:28]} b5 {[%emt 0:03:35]} 10. Ng5 {[%emt 0:03:50]} h6 {[%emt 0:03:23]} 11. Nf3 {[%emt 0:00:16]} Bd7 {[%emt 0:03:18]} 12. Re1 {[%emt 0:06:11]} Qc7 {[%emt 0:06:46]} 13. Bf1 {[%emt 0:01:52]} Rfc8 {[%emt 0:03:55]} 14. Ne2 {[%emt 0:06:14]} Be7 {[%emt 0:02:26]} 15. Rc1 {[%emt 0:04:59]} Qa5 {[%emt 0:05:36]} (15... e5 $17 16. d3 Bd6) 16. Ra1 {[%emt 0:01:20]} Qc7 {[%emt 0:09:08]} 17. g3 {[%emt 0:01:05]} b4 {[%emt 0:01:13]} 18. Qb1 {[%emt 0:07:43]} Rcb8 {[%emt 0:07:50]} 19. Qa2 {[%emt 0:00:51]} a5 {[%emt 0:01:15]} 20. Ned4 {[%emt 0:01:15]} Nxd4 {[%emt 0:01:53]} 21. Bxd4 {[%emt 0:00:40]} Rc8 {[%emt 0:02:20]} ({Black should try} 21... Bd6 $15) 22. Rec1 {[%emt 0:07:02]} bxa3 {[%emt 0:07:26]} 23. c4 {[%emt 0:00:17]} dxc4 {[%emt 0:00:26]} 24. Bxc4 {[%emt 0:02:19]} Qd8 {[%emt 0:01:26]} 25. d3 {[%emt 0:01:19]} Bc6 {[%emt 0:02:08]} (25... Ne8 $142 26. Bb3 Rxc1+ 27. Rxc1 Rc8) 26. Ne5 {[%emt 0:00:53]} Bd5 {[%emt 0:00:53]} 27. Rab1 {[%emt 0:01:06]} Rab8 {[%emt 0:01:47]} 28. Rxb8 {[%emt 0:06:31]} Rxb8 {[%emt 0:00:31]} 29. Bxd5 {[%emt 0:01:16]} Qxd5 {[%emt 0:00:35]} ({Don't go for} 29... exd5 $2 30. Nc6 $18 {[%mdl 64] Double Attack}) 30. Qxd5 {[%emt 0:00:21]} Nxd5 {[%emt 0:00:44]} 31. Nc6 {[%emt 0:00:09]} Rb7 {[%emt 0:07:09]} 32. Nxe7+ {[%emt 0:00:49]} Nxe7 {[%emt 0:00:50]} 33. Ra1 $1 {[%emt 0:03:17]} Rb3 {[%emt 0:04:27]} 34. Bc5 $15 {[%emt 0:00:46]} Nd5 {[%emt 0:02:02]} (34... Nc6 $15 35. Rxa3 Rxa3 36. Bxa3 Ne5) 35. Rxa3 {[%emt 0:00:51]} Rxa3 {[%emt 0:00:21]} 36. Bxa3 {[%emt 0:00:08]} Nb4 {[%emt 0:00:14]} 37. d4 $2 {[%emt 0:01:08] [#]} (37. Kf1 $17 {is a better defense.}) 37... Nc2 $1 {[%emt 0:00:18]} 38. Bb2 {[%emt 0:06:50]} a4 {[%emt 0:00:27]} 39. Kg2 {[%emt 0:00:24]} a3 {[%emt 0:00:18]} 40. Bc3 {[%emt 0:00:11]} a2 {[%emt 0:00:32]} 41. Kf3 {[%emt 0:00:10]} a1=Q {[%emt 0:00:30]} 42. Bxa1 {[%emt 0:00:08]} Nxa1 {[%emt 0:00:01]} 43. Ke4 {[%emt 0:00:14]} f6 {[%emt 0:01:37]} 44. f4 {[%emt 0:00:22]} f5+ {[%emt 0:00:42]} 45. Ke5 {[%emt 0:00:22]} Kf7 {[%emt 0:00:42]} 46. d5 {[%emt 0:00:22]} exd5 {[%emt 0:00:24]} 47. Kxf5 {[%emt 0:00:07]} Nc2 {[%emt 0:00:19]} 48. Ke5 {[%emt 0:01:12]} Nxe3 {[%emt 0:00:20]} 49. h3 {[%emt 0:00:23]} Kg6 {[%emt 0:00:55]} 50. g4 {[%emt 0:00:50]} Ng2 {[%emt 0:00:53]} 51. f5+ {[%emt 0:00:32]} Kg5 {[%emt 0:00:16]} 0-1

[Event "Gibraltar Amateurs A 2020"]
[Site "Caleta"]
[Date "2020.01.23"]
[Round "4.7"]
[White "Coric, Gojko"]
[Black "Johansson, Daniel"]
[Result "1-0"]
[ECO "D02"]
[WhiteElo "1704"]
[BlackElo "1859"]
[Annotator "NA"]
[PlyCount "94"]
[EventDate "2020.01.20"]
[EventType "swiss"]
[EventCountry "GGB"]
[SourceTitle "playchess.com"]
[Source "ChessBase"]
[SourceQuality "1"]
[TimeControl "6600+10"]

1. d4 {[%emt 0:00:00]} Nf6 {[%emt 0:13:09]} 2. Nf3 {[%emt 0:00:15]} e6 {[%emt 0:00:12]} 3. Bf4 {[%emt 0:00:38]} d5 {[%emt 0:00:25]} 4. e3 {[%emt 0:00:43]} Bd6 {[%emt 0:00:06]} 5. Bg5 {[%emt 0:00:25]} (5. Bg3 O-O 6. Nbd2 b6 7. c3 c5 8. Ne5 Qc7 9. f4 Ba6 10. Bxa6 Nxa6 11. Bh4 Nd7 12. Qg4 f5 13. Qe2 Nab8 14. O-O Nc6 {1-0 (31) Aronian,L (2775)-Karjakin,S (2754) Moscow 2019}) 5... h6 {[%emt 0:00:16]} 6. Bh4 {[%emt 0:00:08] D02: 1 d4 d5 2 Nf3 sidelines, including 2...Nf6 3 g3 and 2...Nf6 3 Bf4} Nbd7 {[%emt 0:00:22]} 7. c4 {[%emt 0:00:42]} c6 {[%emt 0:01:42]} 8. Nc3 {[%emt 0:00:08]} O-O {[%emt 0:00:24]} 9. Be2 {[%emt 0:00:27]} b6 $146 {[%emt 0:00:34]} ({Predecessor:} 9... dxc4 10. Bxc4 b5 11. Bd3 Bb7 12. O-O a6 13. Rc1 Rc8 {0-1 (28) Jamaluddin,M (1858)-Noor Akbar,D (1580) Kuala Lumpur 2016}) 10. a3 {[%emt 0:00:11]} Bb7 {[%emt 0:02:20]} 11. O-O {[%emt 0:04:03]} Re8 {[%emt 0:04:28]} 12. Rc1 {[%emt 0:01:13]} a6 {[%emt 0:11:11]} 13. b4 {[%emt 0:03:16]} a5 {[%emt 0:04:40]} 14. c5 {[%emt 0:00:17]} bxc5 {[%emt 0:00:21]} 15. bxc5 {[%emt 0:00:05]} Bc7 {[%emt 0:00:53]} 16. Rb1 {[%emt 0:01:44]} Rb8 {[%emt 0:08:06]} 17. Qc2 {[%emt 0:04:04]} Qc8 {[%emt 0:04:32]} 18. h3 {[%emt 0:03:33]} Ba6 {[%emt 0:03:23]} 19. Bg3 {[%emt 0:02:04]} Bxg3 {[%emt 0:00:37]} 20. fxg3 {[%emt 0:00:02]} Bxe2 {[%emt 0:00:41]} 21. Qxe2 {[%emt 0:00:12]} Qc7 {[%emt 0:00:47]} 22. Qf2 {[%emt 0:00:16]} e5 {[%emt 0:02:23]} 23. g4 {[%emt 0:02:27]} Rxb1 {[%emt 0:01:23]} 24. Rxb1 {[%emt 0:00:03]} exd4 {[%emt 0:01:06]} 25. exd4 {[%emt 0:00:18]} Qf4 {[%emt 0:04:22]} 26. Re1 {[%emt 0:02:07]} Rxe1+ {[%emt 0:01:24]} 27. Qxe1 {[%emt 0:00:02]} Ne4 {[%emt 0:00:35]} 28. a4 {[%emt 0:01:02]} f6 {[%emt 0:13:02]} 29. Ne2 {[%emt 0:05:09]} Qe3+ {[%emt 0:00:29]} 30. Kf1 {[%emt 0:00:01]} Nf8 {[%emt 0:04:28]} 31. Nc1 {[%emt 0:03:26]} Ng3+ $2 {[%emt 0:04:08]} (31... Qa3 $19 32. Qd1 Ne6) 32. Qxg3 {[%emt 0:00:11]} Qxc1+ {[%emt 0:00:06]} 33. Qe1 {[%emt 0:03:16]} Qc4+ {[%emt 0:00:13]} 34. Kg1 {[%emt 0:00:20]} Qxa4 {[%emt 0:00:19]} 35. Qe8 {[%emt 0:00:15]} Qb3 {[%emt 0:14:00]} 36. Kh2 {[%emt 0:01:00]} Qb7 {[%emt 0:03:01]} 37. Nh4 {[%emt 0:01:18]} Qd7 {[%emt 0:00:44]} 38. Qa8 {[%emt 0:01:07]} Qc7+ {[%emt 0:01:07]} 39. Kg1 {[%emt 0:03:59]} Kf7 {[%emt 0:03:11]} 40. Nf5 {[%emt 0:04:28]} g6 {[%emt 0:00:39]} 41. Nd6+ {[%emt 0:04:19]} Kg8 {[%emt 0:00:03]} 42. h4 {[%emt 0:07:05]} h5 {[%emt 0:00:42]} 43. gxh5 {[%emt 0:00:29]} gxh5 {[%emt 0:00:03]} 44. Qe8 {[%emt 0:00:06]} Qd7 {[%emt 0:00:30]} 45. Qxh5 {[%emt 0:01:05]} Qe7 {[%emt 0:01:00]} 46. Nf5 {[%emt 0:00:49]} Qh7 {[%emt 0:00:00] [#]} 47. Nh6+ $11 {[%emt 0:01:45]} (47. Qxh7+ $1 $16 Kxh7 48. Ne7) 47... Kh8 {[%emt 0:00:00]} 1-0

[Event "Gibraltar Amateurs A 2020"]
[Site "Caleta"]
[Date "2020.01.23"]
[Round "4.8"]
[White "D`haluin, Wim"]
[Black "Oueld El Hachemi, Abdelhaq"]
[Result "1-0"]
[ECO "D02"]
[WhiteElo "1686"]
[BlackElo "1788"]
[Annotator "NA"]
[PlyCount "75"]
[EventDate "2020.01.20"]
[EventType "swiss"]
[EventCountry "GGB"]
[SourceTitle "playchess.com"]
[Source "ChessBase"]
[SourceQuality "1"]
[TimeControl "6600+10"]

1. d4 {[%emt 0:00:23]} d5 {[%emt 0:00:09]} 2. Nf3 {[%emt 0:00:11]} Nc6 {[%emt 0:00:25]} 3. Bf4 {[%emt 0:00:28]} e6 {[%emt 0:00:32]} 4. e3 {[%emt 0:00:42]} a6 {[%emt 0:00:10]} 5. c4 {[%emt 0:00:43]} Nf6 {[%emt 0:00:37]} 6. Be2 {[%emt 0:01:03]} Bb4+ {[%emt 0:00:14]} 7. Nbd2 {[%emt 0:00:19]} Ne4 {[%emt 0:01:47]} 8. O-O {[%emt 0:00:19]} g5 {[%emt 0:00:34]} 9. Nxe4 {[%emt 0:03:24]} dxe4 {[%emt 0:00:48]} 10. Nxg5 {[%emt 0:00:34]} Bd6 {[%emt 0:07:26]} 11. Bxd6 {[%emt 0:03:36]} cxd6 {[%emt 0:00:16]} 12. Nxe4 {[%emt 0:00:24]} O-O {[%emt 0:01:37]} 13. f4 {[%emt 0:05:40]} f5 {[%emt 0:00:24]} 14. Nc3 {[%emt 0:02:31]} Qb6 {[%emt 0:00:30]} 15. Na4 {[%emt 0:12:32]} Qa7 {[%emt 0:00:41]} 16. c5 {[%emt 0:01:09]} dxc5 {[%emt 0:01:14]} 17. Nxc5 {[%emt 0:00:57]} Rd8 {[%emt 0:00:49]} 18. Bc4 {[%emt 0:02:43]} Rd6 {[%emt 0:00:07]} 19. Qh5 {[%emt 0:01:15]} b6 {[%emt 0:02:33]} 20. Nd3 {[%emt 0:03:50]} Nxd4 {[%emt 0:02:31]} 21. exd4 {[%emt 0:02:19]} Rxd4 {[%emt 0:01:52]} 22. Qg5+ {[%emt 0:04:46]} Kh8 {[%emt 0:05:46]} 23. Qf6+ {[%emt 0:00:10]} Qg7 {[%emt 0:00:01]} 24. Qxg7+ {[%emt 0:00:32]} Kxg7 {[%emt 0:00:13]} 25. Ne5 {[%emt 0:00:07]} b5 {[%emt 0:01:42]} 26. Bb3 {[%emt 0:00:12]} Rd2 {[%emt 0:00:31]} 27. Rf2 {[%emt 0:00:26]} Rd6 {[%emt 0:00:35]} 28. Rd1 {[%emt 0:02:21]} Rxd1+ {[%emt 0:00:16]} 29. Bxd1 {[%emt 0:00:06]} Bb7 {[%emt 0:00:10]} 30. Bb3 {[%emt 0:01:09]} Kf6 {[%emt 0:00:23]} 31. Rd2 {[%emt 0:03:03]} Rg8 {[%emt 0:00:29]} 32. g3 {[%emt 0:00:22]} Rg7 {[%emt 0:00:02]} 33. Rd6 {[%emt 0:02:44]} Rc7 {[%emt 0:04:20]} 34. Rxe6+ {[%emt 0:02:24]} Kg7 {[%emt 0:00:00]} 35. Kf2 {[%emt 0:01:23]} a5 {[%emt 0:00:00]} 36. a4 {[%emt 0:02:24]} b4 {[%emt 0:00:26]} 37. Rd6 {[%emt 0:00:38]} Bc8 {[%emt 0:00:31]} 38. Rc6 {[%emt 0:03:01]} 1-0

[Event "Gibraltar Amateurs A 2020"]
[Site "Caleta"]
[Date "2020.01.23"]
[Round "4.9"]
[White "Anjali R. Sagar"]
[Black "Poggio, Freddie"]
[Result "1-0"]
[ECO "B90"]
[WhiteElo "1775"]
[BlackElo "1680"]
[Annotator "NA"]
[PlyCount "65"]
[EventDate "2020.01.20"]
[EventType "swiss"]
[EventCountry "GGB"]
[SourceTitle "playchess.com"]
[Source "ChessBase"]
[SourceQuality "1"]
[TimeControl "6600+10"]

1. e4 {[%emt 0:00:01]} c5 {[%emt 0:00:04]} 2. Nf3 {[%emt 0:00:18]} d6 {[%emt 0:00:35]} 3. d4 {[%emt 0:00:08]} cxd4 {[%emt 0:00:12]} 4. Nxd4 {[%emt 0:00:14]} Nf6 {[%emt 0:00:04]} 5. Nc3 {[%emt 0:00:10]} a6 {[%emt 0:00:04]} 6. f3 {[%emt 0:00:13]} Qc7 {[%emt 0:01:09]} 7. Be3 {[%emt 0:00:26]} Nbd7 {[%emt 0:01:23]} 8. g4 {[%emt 0:01:39]} e6 {[%emt 0:03:11]} 9. g5 {[%emt 0:02:16]} Ng8 {[%emt 0:01:38]} 10. f4 {[%emt 0:09:39]} Ne7 {[%emt 0:06:07]} 11. Qd2 {[%emt 0:08:44]} g6 {[%emt 0:04:05]} 12. O-O-O {[%emt 0:02:04]} Nc6 {[%emt 0:07:11]} 13. Nb3 {[%emt 0:10:34]} b5 {[%emt 0:05:51]} 14. h4 {[%emt 0:06:23]} Bb7 {[%emt 0:04:40]} 15. h5 {[%emt 0:02:38]} b4 {[%emt 0:05:28]} 16. Ne2 {[%emt 0:01:03]} Na5 {[%emt 0:03:27]} 17. hxg6 {[%emt 0:11:31]} Nxb3+ {[%emt 0:01:38]} 18. axb3 {[%emt 0:00:44]} fxg6 {[%emt 0:00:37]} 19. Qxb4 {[%emt 0:05:51]} Rc8 {[%emt 0:04:28]} 20. Nc3 {[%emt 0:00:56]} a5 {[%emt 0:06:35]} 21. Qd4 {[%emt 0:02:08]} e5 {[%emt 0:00:34]} 22. fxe5 {[%emt 0:02:07]} dxe5 {[%emt 0:00:42]} 23. Qd3 {[%emt 0:02:49]} Bc5 {[%emt 0:02:16]} 24. Bh3 {[%emt 0:05:50]} Bxe3+ {[%emt 0:01:53]} 25. Qxe3 {[%emt 0:00:17]} Rd8 {[%emt 0:02:08]} 26. Nb5 {[%emt 0:03:55]} Qc6 {[%emt 0:03:22]} 27. Nd6+ {[%emt 0:00:32]} Ke7 {[%emt 0:00:48]} 28. Nxb7 {[%emt 0:03:13]} Qxb7 {[%emt 0:00:53]} 29. Rhf1 {[%emt 0:01:00]} Rhf8 {[%emt 0:04:35]} 30. Bxd7 {[%emt 0:00:47]} Rxf1 {[%emt 0:04:29]} 31. Qc5+ {[%emt 0:00:30]} Kf7 {[%emt 0:01:05]} 32. Rxf1+ {[%emt 0:00:14]} Kg7 {[%emt 0:00:20]} 33. Qxe5+ {[%emt 0:00:15]} 1-0

[Event "Gibraltar Amateurs A 2020"]
[Site "Caleta"]
[Date "2020.01.23"]
[Round "4.10"]
[White "Savage, Neil"]
[Black "Stamenov, Valeriy"]
[Result "0-1"]
[ECO "C62"]
[WhiteElo "1608"]
[BlackElo "1761"]
[Annotator "NA"]
[PlyCount "84"]
[EventDate "2020.01.20"]
[EventType "swiss"]
[EventCountry "GGB"]
[SourceTitle "playchess.com"]
[Source "ChessBase"]
[SourceQuality "1"]
[TimeControl "6600+10"]

1. e4 {[%emt 0:00:00]} e5 {[%emt 0:00:00]} 2. Nf3 {[%emt 0:00:20]} Nc6 {[%emt 0:00:02]} 3. Bb5 {[%emt 0:00:21]} d6 {[%emt 0:00:23]} 4. d4 {[%emt 0:00:51]} exd4 {[%emt 0:00:08]} 5. Nxd4 {[%emt 0:00:19]} Bd7 {[%emt 0:00:14]} 6. Nc3 {[%emt 0:00:44]} g6 {[%emt 0:00:24]} 7. Be3 {[%emt 0:01:01]} Bg7 {[%emt 0:00:16]} 8. Qd2 {[%emt 0:01:20]} Nf6 {[%emt 0:00:46]} 9. Bxc6 {[%emt 0:01:18]} bxc6 {[%emt 0:00:27]} 10. Bh6 {[%emt 0:01:34]} O-O {[%emt 0:00:19]} 11. Bxg7 {[%emt 0:00:27]} Kxg7 {[%emt 0:00:02]} 12. O-O {[%emt 0:01:57]} Re8 {[%emt 0:04:06]} 13. f3 {[%emt 0:04:45]} Rb8 {[%emt 0:05:33]} 14. b3 {[%emt 0:04:25]} c5 {[%emt 0:14:57]} 15. Nde2 {[%emt 0:03:38]} Bc6 {[%emt 0:00:23]} 16. Nf4 {[%emt 0:06:20]} Qe7 {[%emt 0:10:23]} 17. Ncd5 {[%emt 0:07:13]} Bxd5 {[%emt 0:01:03]} 18. Nxd5 {[%emt 0:00:40]} Nxd5 {[%emt 0:00:09]} 19. Qxd5 {[%emt 0:00:12]} Rb6 {[%emt 0:04:01]} 20. Rfd1 {[%emt 0:04:52]} Qe5 {[%emt 0:01:14]} 21. Qxe5+ {[%emt 0:10:32]} Rxe5 {[%emt 0:00:09]} 22. a3 {[%emt 0:02:22]} a5 {[%emt 0:03:04]} 23. Rab1 {[%emt 0:05:34]} Re8 {[%emt 0:03:11]} 24. a4 {[%emt 0:04:21]} Reb8 {[%emt 0:00:51]} 25. Rd5 {[%emt 0:04:47]} f6 {[%emt 0:01:44]} 26. f4 {[%emt 0:03:17]} Re8 {[%emt 0:24:57]} 27. Re1 {[%emt 0:08:05]} Rb4 {[%emt 0:02:39]} 28. e5 {[%emt 0:00:18]} fxe5 {[%emt 0:00:08]} 29. fxe5 {[%emt 0:01:56]} Rd4 {[%emt 0:00:19]} 30. Rxd4 {[%emt 0:04:17]} cxd4 {[%emt 0:00:11]} 31. e6 {[%emt 0:02:06]} Kf6 {[%emt 0:07:17]} 32. Rf1+ {[%emt 0:05:30]} Kxe6 {[%emt 0:00:17]} 33. Re1+ {[%emt 0:00:19]} Kd7 {[%emt 0:00:38]} 34. Rxe8 {[%emt 0:00:12]} Kxe8 {[%emt 0:00:02]} 35. Kf2 {[%emt 0:00:24]} c5 {[%emt 0:03:20]} 36. Kf3 {[%emt 0:01:02]} Kd7 {[%emt 0:00:56]} 37. Ke4 {[%emt 0:02:15]} Ke6 {[%emt 0:02:01]} 38. g4 {[%emt 0:02:07]} g5 {[%emt 0:01:10]} 39. Kd3 {[%emt 0:01:45]} d5 {[%emt 0:00:13]} 40. c4 {[%emt 0:02:03]} dxc3 {[%emt 0:00:45]} 41. Kxc3 {[%emt 0:00:08]} Ke5 {[%emt 0:00:13]} 42. Kd3 {[%emt 0:00:31]} Kf4 {[%emt 0:00:43]} 0-1

[Event "Gibraltar Amateurs A 2020"]
[Site "Caleta"]
[Date "2020.01.23"]
[Round "4.11"]
[White "Jimenez Urquijo, Juan Manuel"]
[Black "Sagar Siya"]
[Result "0-1"]
[ECO "A16"]
[WhiteElo "1567"]
[BlackElo "1740"]
[Annotator "NA"]
[PlyCount "118"]
[EventDate "2020.01.20"]
[EventType "swiss"]
[EventCountry "GGB"]
[SourceTitle "playchess.com"]
[Source "ChessBase"]
[SourceQuality "1"]
[TimeControl "6600+10"]

1. Nf3 {[%emt 0:01:56]} Nf6 {[%emt 0:00:00]} 2. c4 {[%emt 0:00:01]} g6 {[%emt 0:00:37]} 3. Nc3 {[%emt 0:00:09]} d5 {[%emt 0:00:14]} 4. cxd5 {[%emt 0:03:22]} Nxd5 {[%emt 0:00:18]} 5. Qa4+ {[%emt 0:00:15]} c6 {[%emt 0:02:07]} 6. Qd4 {[%emt 0:05:55]} f6 {[%emt 0:00:56]} 7. e4 {[%emt 0:00:45]} Nxc3 {[%emt 0:00:53]} 8. Qxd8+ {[%emt 0:00:22]} Kxd8 {[%emt 0:00:09]} 9. dxc3 {[%emt 0:00:49]} Bg7 {[%emt 0:00:48]} 10. Be3 {[%emt 0:00:47]} Kc7 {[%emt 0:00:38]} 11. O-O-O {[%emt 0:02:11]} Nd7 {[%emt 0:00:30]} 12. Bc4 {[%emt 0:02:03]} Nb6 {[%emt 0:00:54]} 13. Bb3 {[%emt 0:02:04]} e5 {[%emt 0:01:31]} 14. Nd2 {[%emt 0:04:11]} Re8 {[%emt 0:02:59]} 15. Bf7 {[%emt 0:09:10]} Re7 {[%emt 0:01:27]} 16. Bg8 {[%emt 0:00:26]} Bg4 {[%emt 0:01:39]} 17. Bxh7 {[%emt 0:02:50]} Bxd1 {[%emt 0:00:33]} 18. Rxd1 {[%emt 0:00:06]} Bh6 {[%emt 0:02:15]} 19. Bxg6 {[%emt 0:04:51]} Bxe3 {[%emt 0:00:13]} 20. fxe3 {[%emt 0:00:01]} Rg7 {[%emt 0:00:19]} 21. Bf5 {[%emt 0:00:29]} Rxg2 {[%emt 0:00:45]} 22. h3 {[%emt 0:00:05]} Rd8 {[%emt 0:01:31]} 23. b3 {[%emt 0:00:27]} Re2 {[%emt 0:01:56]} 24. h4 {[%emt 0:03:19]} Rxe3 {[%emt 0:01:55]} 25. Kc2 {[%emt 0:00:13]} Rg3 {[%emt 0:01:09]} 26. h5 {[%emt 0:02:46]} Nc8 {[%emt 0:01:32]} 27. Bg6 {[%emt 0:04:52]} Ne7 {[%emt 0:02:34]} 28. Bf7 {[%emt 0:00:07]} b5 {[%emt 0:01:15]} 29. Be6 {[%emt 0:08:48]} Rd6 {[%emt 0:01:44]} 30. Bf7 {[%emt 0:08:37]} Rg7 {[%emt 0:00:42]} 31. Bg6 {[%emt 0:00:31]} Nxg6 {[%emt 0:00:25]} 32. hxg6 {[%emt 0:00:04]} Rxg6 {[%emt 0:00:09]} 33. b4 {[%emt 0:00:05]} Rg2 {[%emt 0:00:24]} 34. Kc1 {[%emt 0:01:13]} Kd7 {[%emt 0:00:25]} 35. Kc2 {[%emt 0:03:03]} Ke6 {[%emt 0:00:19]} 36. Kc1 {[%emt 0:00:20]} Ke7 {[%emt 0:00:40]} 37. Kc2 {[%emt 0:02:11]} Kd7 {[%emt 0:00:09]} 38. a3 {[%emt 0:00:31]} a6 {[%emt 0:00:06]} 39. Kc1 {[%emt 0:00:28]} Ke6 {[%emt 0:00:13]} 40. Kc2 {[%emt 0:02:03]} f5 {[%emt 0:00:23]} 41. exf5+ {[%emt 0:00:18]} Kxf5 {[%emt 0:00:08]} 42. c4 {[%emt 0:00:42]} bxc4 {[%emt 0:00:40]} 43. Kc3 {[%emt 0:00:15]} Rd3+ {[%emt 0:00:43]} 44. Kxc4 {[%emt 0:00:39]} Rdxd2 {[%emt 0:00:19]} 45. Rh1 {[%emt 0:02:15]} Rc2+ {[%emt 0:01:50]} 46. Kb3 {[%emt 0:00:09]} e4 {[%emt 0:00:25]} 47. Rh3 {[%emt 0:00:48]} Rcf2 {[%emt 0:01:07]} 48. Ka4 {[%emt 0:00:59]} Rf3 {[%emt 0:00:19]} 49. Rh8 {[%emt 0:00:08]} e3 {[%emt 0:00:29]} 50. Rf8+ {[%emt 0:01:00]} Kg4 {[%emt 0:00:08]} 51. Re8 {[%emt 0:01:44]} e2 {[%emt 0:00:31]} 52. Re6 {[%emt 0:03:55]} Rf1 {[%emt 0:00:48]} 53. Rg6+ {[%emt 0:00:13]} Kh3 {[%emt 0:00:29]} 54. Rh6+ {[%emt 0:00:35]} Kg3 {[%emt 0:00:06]} 55. Rg6+ {[%emt 0:00:19]} Kh2 {[%emt 0:00:15]} 56. Rxc6 {[%emt 0:00:11]} e1=Q {[%emt 0:00:21]} 57. Rxa6 {[%emt 0:00:31]} Qd1+ {[%emt 0:00:08]} 58. Ka5 {[%emt 0:00:46]} Rf5+ {[%emt 0:00:08]} 59. b5 {[%emt 0:00:14]} Qd2+ {[%emt 0:00:08]} 0-1

[Event "Gibraltar Amateurs A 2020"]
[Site "Caleta"]
[Date "2020.01.23"]
[Round "4.13"]
[White "Sedgwick, David"]
[Black "Hudson, Jeremy"]
[Result "1-0"]
[ECO "C47"]
[WhiteElo "1894"]
[BlackElo "1570"]
[Annotator "NA"]
[PlyCount "73"]
[EventDate "2020.01.20"]
[EventType "swiss"]
[EventCountry "GGB"]
[SourceTitle "playchess.com"]
[Source "ChessBase"]
[SourceQuality "1"]
[TimeControl "6600+10"]

1. e4 {[%emt 0:14:42]} e5 {[%emt 0:00:01]} 2. Nf3 {[%emt 0:00:41]} Nf6 {[%emt 0:00:06]} 3. Nc3 {[%emt 0:00:12]} Nc6 {[%emt 0:00:12]} 4. d4 {[%emt 0:00:06]} exd4 {[%emt 0:02:26]} 5. Nxd4 {[%emt 0:00:37]} Bc5 {[%emt 0:00:33]} 6. Be3 {[%emt 0:01:28]} Bxd4 {[%emt 0:02:58]} 7. Bxd4 {[%emt 0:00:09]} Nxd4 {[%emt 0:00:16]} 8. Qxd4 {[%emt 0:00:06]} O-O {[%emt 0:13:40]} 9. e5 {[%emt 0:01:44] C47: Scotch Four Knights and Four Knights with 4 g3} Ne8 {[%emt 0:07:33]} 10. O-O-O {[%emt 0:01:28]} d6 {[%emt 0:02:25]} 11. f4 {[%emt 0:01:54]} Bg4 $146 {[%emt 0:07:33]} ({Predecessor:} 11... Be6 12. Bd3 Qh4 13. g3 Qh3 14. Ne4 dxe5 15. Qxe5 f6 16. Qc5 c6 17. Rhe1 Bd5 18. Nc3 Bf7 19. Re7 Qxh2 20. Rxb7 Qxg3 21. Bxh7+ Kxh7 22. Qxf8 Qxf4+ 23. Kb1 {1-0 (23) Bogdanovich,S (2596)-Kessler,L (2431) Minsk 2017}) 12. Rd3 {[%emt 0:01:03]} Bf5 {[%emt 0:02:21]} 13. Rd2 {[%emt 0:02:54]} Qh4 {[%emt 0:05:19]} 14. exd6 {[%emt 0:03:25]} Nxd6 {[%emt 0:01:30]} 15. g3 {[%emt 0:01:50]} Qd8 {[%emt 0:09:33]} 16. Rg1 {[%emt 0:03:16]} a6 {[%emt 0:10:14]} 17. g4 {[%emt 0:00:48]} Bd7 {[%emt 0:05:11]} 18. Bd3 {[%emt 0:03:10]} Bb5 {[%emt 0:07:45]} 19. Nxb5 {[%emt 0:02:25]} (19. g5 $16) 19... axb5 {[%emt 0:01:07]} 20. a3 {[%emt 0:02:28]} Ra4 {[%emt 0:02:03]} 21. Qd5 {[%emt 0:08:19] [#]} b4 $1 {[%emt 0:10:07]} 22. Rg3 {[%emt 0:05:44]} bxa3 {[%emt 0:02:40]} 23. Bxh7+ {[%emt 0:01:02]} Kxh7 {[%emt 0:00:02]} 24. Qh5+ {[%emt 0:00:15]} Kg8 {[%emt 0:00:09]} 25. Rh3 {[%emt 0:01:04]} axb2+ {[%emt 0:00:08]} 26. Kb1 {[%emt 0:01:26]} Ra1+ {[%emt 0:00:35]} 27. Kxb2 {[%emt 0:00:02]} Qf6+ {[%emt 0:00:09]} 28. c3 {[%emt 0:00:52]} Nc4+ {[%emt 0:01:21]} 29. Kxa1 {[%emt 0:00:37]} Ra8+ {[%emt 0:01:15]} 30. Ra2 {[%emt 0:01:25]} Rxa2+ {[%emt 0:00:35]} 31. Kxa2 {[%emt 0:00:05]} Qa6+ {[%emt 0:00:38]} 32. Kb3 {[%emt 0:02:00]} Nd2+ {[%emt 0:02:35]} 33. Kc2 {[%emt 0:00:59]} Qa2+ {[%emt 0:01:15]} 34. Kd1 {[%emt 0:03:23]} Kf8 {[%emt 0:02:19]} 35. Qh8+ $2 {[%emt 0:00:15]} (35. Rd3 Qb3+ 36. Ke2 Qe6+ 37. Kxd2 Qa2+ 38. Ke3 Qe6+ 39. Kf3) 35... Ke7 {[%emt 0:00:06]} 36. Re3+ {[%emt 0:00:11]} Kf6 {[%emt 0:00:28] [#]} 37. Qd8+ {[%emt 0:00:46]} 1-0